Workbook

Sheet SkillConfig
A1: ID | D1: icon | E1: scriptName | F1: IDGroup | G1: cd | H1: SkillType | I1: level | J1: name | K1: desc | L1: effectValue
A2: int | C2: 使用神器 | D2: string | E2: string | F2: int | G2: int | H2: int | I2: int | J2: int | K2: int | L2: float[]
C3: =SUBTOTAL(3,C6:C9258) -> 0
A4: 技能ID IDGroup+技能等级 | B4: 所属英雄名字 （策划用） | C4: 所属英雄ID （策划用） | D4: 图标 | E4: 脚本名称 | F4: 技能序列 所属英雄ID+技能类型 潜规则5=远程普攻 | G4: 技能CD 普攻无CD | H4: 技能类型: 1= 基础 2= 小招 3= 大招 4= 被动 5= 觉醒新技能效果|专属遗物效果 6 =职业被动 7 =神器光明强化 8 =神器黑暗强化 | I4: 等级 | J4: 技能名 语言表ID | K4: 技能描述 语言表ID | L4: 效果值
A5: 10011 | B5: 普通攻击技能 | E5: NormalSkill | F5: 1001 | H5: 1 | I5: 1 | J5: 405077 | L5: 100
A6: 100011 | B6: 向周围释放4道剑气，造成伤害 | D6: ="icon_skill_"&F6 -> icon_skill_10001 | E6: S10001 | F6: 10001 | G6: 4 | H6: 2 | I6: 1 | J6: 45 | K6: 33 | L6: =G6*P6*100 -> 400 | P6: 1
A7: 100012 | B7: 旋风斩 | D7: ="icon_skill_"&F7 -> icon_skill_10001 | E7: S10001 | F7: 10001 | G7: 4 | H7: 2 | I7: 2 | J7: 45 | K7: 34 | L7: =G7*P7*100 -> 440 | P7: 1.1
A8: 100013 | B8: 旋风斩 | D8: icon_skill_10001 | E8: S10001 | F8: 10001 | G8: 4 | H8: 2 | I8: 3 | J8: 45 | K8: 35 | L8: =G8*P8*100 -> 480 | P8: 1.2
A9: 100014 | B9: 旋风斩 | D9: icon_skill_10001 | E9: S10001 | F9: 10001 | G9: 4 | H9: 2 | I9: 4 | J9: 45 | K9: 36 | L9: =G9*P9*100 -> 520 | P9: 1.3
A10: 300011 | B10: 火焰烧烤 | D10: icon_skill_30001 | E10: S30001 | F10: 30001 | G10: 6 | H10: 2 | I10: 1 | J10: 50 | K10: 46 | L10: 60;3 | O10: =G10*P6/2/5 -> 0.6
A11: 300012 | B11: 火焰烧烤 | D11: icon_skill_30001 | E11: S30001 | F11: 30001 | G11: 6 | H11: 2 | I11: 2 | J11: 50 | K11: 47 | L11: 66;3 | O11: =G11*P7/2/5 -> 0.66
A12: 300013 | B12: 火焰烧烤 | D12: icon_skill_30001 | E12: S30001 | F12: 30001 | G12: 6 | H12: 2 | I12: 3 | J12: 50 | K12: 48 | L12: 72;3 | O12: =G12*P8/2/5 -> 0.72
A13: 300014 | B13: 火焰烧烤 | D13: icon_skill_30001 | E13: S30001 | F13: 30001 | G13: 6 | H13: 2 | I13: 4 | J13: 50 | K13: 49 | L13: 78;4 | O13: =G13*P9/2/5 -> 0.78
A14: 200011 | B14: 全体治疗 | D14: icon_skill_20001 | E14: S20001 | F14: 20001 | G14: 5 | H14: 2 | I14: 1 | J14: 55 | K14: 51 | L14: =G14*P6*100*1.3 -> 650
A15: 200012 | B15: 全体治疗 | D15: icon_skill_20001 | E15: S20001 | F15: 20001 | G15: 5 | H15: 2 | I15: 2 | J15: 55 | K15: 52 | L15: =G15*P7*100*1.3 -> 715
A16: 200013 | B16: 全体治疗 | D16: icon_skill_20001 | E16: S20001 | F16: 20001 | G16: 5 | H16: 2 | I16: 3 | J16: 55 | K16: 53 | L16: =G16*P8*100*1.3 -> 780
A17: 200014 | B17: 全体治疗 | D17: icon_skill_20001 | E17: S20001 | F17: 20001 | G17: 5 | H17: 2 | I17: 4 | J17: 55 | K17: 54 | L17: =G17*P9*100*1.3 -> 845
A18: 400011 | B18: 连续射击 | D18: icon_skill_40001 | E18: S40001 | F18: 40001 | G18: 10 | H18: 2 | I18: 1 | J18: 60 | K18: 56 | L18: =G18*P6*100/3 -> 333.3333333
A19: 400012 | B19: 连续射击 | D19: icon_skill_40001 | E19: S40001 | F19: 40001 | G19: 10 | H19: 2 | I19: 2 | J19: 60 | K19: 57 | L19: =G19*P7*100/3 -> 366.6666667
A20: 400013 | B20: 连续射击 | D20: icon_skill_40001 | E20: S40001 | F20: 40001 | G20: 10 | H20: 2 | I20: 3 | J20: 60 | K20: 58 | L20: =G20*P8*100/3 -> 400
A21: 400014 | B21: 连续射击 | D21: icon_skill_40001 | E21: S40001 | F21: 40001 | G21: 10 | H21: 2 | I21: 4 | J21: 60 | K21: 59 | L21: =G21*P9*100/3 -> 433.3333333
A22: 1100011 | B22: 大蛇第一个技能，对敌人照成伤害，并将敌人击退一段距离 | D22: icon_skill_110001 | E22: S110001 | F22: 110001 | G22: 5 | H22: 2 | I22: 1 | J22: 405077 | L22: =G22*P6*100 -> 500 | N22: 蛇BOSS
A23: 1100012 | B23: 大蛇第一个技能，对敌人照成伤害，并将敌人击退一段距离 | D23: icon_skill_110001 | E23: S110001 | F23: 110001 | G23: 5 | H23: 2 | I23: 2 | J23: 405077 | L23: 550
A24: 1100013 | B24: 大蛇第一个技能，对敌人照成伤害，并将敌人击退一段距离 | D24: icon_skill_110001 | E24: S110001 | F24: 110001 | G24: 5 | H24: 2 | I24: 3 | J24: 405077 | L24: 600
A25: 1100014 | B25: 大蛇第一个技能，对敌人照成伤害，并将敌人击退一段距离 | D25: icon_skill_110001 | E25: S110001 | F25: 110001 | G25: 5 | H25: 2 | I25: 4 | J25: 405077 | L25: 650
A26: 1100021 | B26: 大蛇技能2，吐火焰经过的敌人收到伤害,没0.5秒收到一次伤害 | D26: icon_skill_110002 | E26: S110002 | F26: 110002 | G26: 10 | H26: 2 | I26: 1 | J26: 405077 | L26: =G26*P6*100/2/2 -> 250 | N26: 蛇BOSS
A27: 1100022 | B27: 大蛇技能2，吐火焰经过的敌人收到伤害,没0.5秒收到一次伤害 | D27: icon_skill_110002 | E27: S110002 | F27: 110002 | G27: 10 | H27: 2 | I27: 2 | J27: 405077 | L27: =G27*P7*100/2/2 -> 275
A28: 1100023 | B28: 大蛇技能2，吐火焰经过的敌人收到伤害,没0.5秒收到一次伤害 | D28: icon_skill_110002 | E28: S110002 | F28: 110002 | G28: 10 | H28: 2 | I28: 3 | J28: 405077 | L28: =G28*P8*100/2/2 -> 300
A29: 1100024 | B29: 大蛇技能2，吐火焰经过的敌人收到伤害,没0.5秒收到一次伤害 | D29: icon_skill_110002 | E29: S110002 | F29: 110002 | G29: 10 | H29: 2 | I29: 4 | J29: 405077 | L29: =G29*P9*100/2/2 -> 325
A30: 1200011 | B30: 小蛇精英怪技能 向前冲撞，对冲撞的敌人造成伤害 | D30: icon_skill_120001 | E30: S120001 | F30: 120001 | G30: 4 | H30: 2 | I30: 1 | J30: 405077 | L30: =G30*P6*100 -> 400 | N30: 精英蛇
A31: 1200012 | B31: 小蛇精英怪技能 向前冲撞，对冲撞的敌人造成伤害 | D31: icon_skill_120001 | E31: S120001 | F31: 120001 | G31: 4 | H31: 2 | I31: 2 | J31: 405077 | L31: 440
A32: 1200013 | B32: 小蛇精英怪技能 向前冲撞，对冲撞的敌人造成伤害 | D32: icon_skill_120001 | E32: S120001 | F32: 120001 | G32: 4 | H32: 2 | I32: 3 | J32: 405077 | L32: 480
A33: 1200014 | B33: 小蛇精英怪技能 向前冲撞，对冲撞的敌人造成伤害 | D33: icon_skill_120001 | E33: S120001 | F33: 120001 | G33: 4 | H33: 2 | I33: 4 | J33: 405077 | L33: 520
A34: 1300011 | B34: 狼精英技能 | D34: icon_skill_130001 | E34: S130001 | F34: 130001 | G34: 5 | H34: 2 | I34: 1 | J34: 405077 | L34: =G34*P6*100 -> 500 | N34: 精英狗
A35: 1300012 | B35: 狼精英技能 | D35: icon_skill_130001 | E35: S130001 | F35: 130001 | G35: 5 | H35: 2 | I35: 2 | J35: 405077 | L35: 550
A36: 1300013 | B36: 狼精英技能 | D36: icon_skill_130001 | E36: S130001 | F36: 130001 | G36: 5 | H36: 2 | I36: 3 | J36: 405077 | L36: 600
A37: 1300014 | B37: 狼精英技能 | D37: icon_skill_130001 | E37: S130001 | F37: 130001 | G37: 5 | H37: 2 | I37: 4 | J37: 405077 | L37: 650
A38: 1400011 | B38: 狼boss的第一个技能 | D38: icon_skill_140001 | E38: S140001 | F38: 140001 | G38: 3 | H38: 2 | I38: 1 | J38: 405077 | L38: =G38*P6*100 -> 300 | N38: 狗BOSS
A39: 1400012 | B39: 狼boss的第一个技能 | D39: icon_skill_140001 | E39: S140001 | F39: 140001 | G39: 3 | H39: 2 | I39: 2 | J39: 405077 | L39: 330
A40: 1400013 | B40: 狼boss的第一个技能 | D40: icon_skill_140001 | E40: S140001 | F40: 140001 | G40: 3 | H40: 2 | I40: 3 | J40: 405077 | L40: 360
A41: 1400014 | B41: 狼boss的第一个技能 | D41: icon_skill_140001 | E41: S140001 | F41: 140001 | G41: 3 | H41: 2 | I41: 4 | J41: 405077 | L41: 390
A42: 1400031 | B42: 狼boss 第3个技能，跳跃攻击范围那的敌人 | D42: icon_skill_140003 | E42: S140003 | F42: 140003 | G42: 8 | H42: 2 | I42: 1 | J42: 405077 | L42: =G42*P6*100 -> 800 | N42: 狗BOSS
A43: 1400032 | B43: 狼boss 第3个技能，跳跃攻击范围那的敌人 | D43: icon_skill_140003 | E43: S140003 | F43: 140003 | G43: 8 | H43: 2 | I43: 2 | J43: 405077 | L43: =G43*P7*100 -> 880
A44: 1400033 | B44: 狼boss 第3个技能，跳跃攻击范围那的敌人 | D44: icon_skill_140003 | E44: S140003 | F44: 140003 | G44: 8 | H44: 2 | I44: 3 | J44: 405077 | L44: =G44*P8*100 -> 960
A45: 1400034 | B45: 狼boss 第3个技能，跳跃攻击范围那的敌人 | D45: icon_skill_140003 | E45: S140003 | F45: 140003 | G45: 8 | H45: 2 | I45: 4 | J45: 405077 | L45: =G45*P9*100 -> 1040

Sheet SkillUpConfig
A1: ID | B1: upType | C1: upValue | D1: idx | E1: skillLv
A2: int | B2: int | C2: int | D2: int | E2: int
A4: 表ID 技能ID的最后两位 1=普攻 | B4: 1.等级 2.星级 | C4: 具体星级 或等级 | D4: 技能位置 对应HeroModel表的下标 | E4: 对应HeroModel表的下标的等级
A5: 1 | B5: 1 | C5: 1 | D5: 0 | E5: 1
A6: 11 | B6: 1 | C6: 1 | D6: 1 | E6: 1
A7: 12 | B7: 1 | C7: 31 | D7: 1 | E7: 2
A8: 13 | B8: 1 | C8: 131 | D8: 1 | E8: 3
A9: 14 | B9: 1 | C9: 231 | D9: 1 | E9: 4
A10: 21 | B10: 1 | C10: 11 | D10: 2 | E10: 1
A11: 22 | B11: 1 | C11: 51 | D11: 2 | E11: 2
A12: 23 | B12: 1 | C12: 151 | D12: 2 | E12: 3
A13: 24 | B13: 1 | C13: 251 | D13: 2 | E13: 4
A14: 31 | B14: 2 | C14: 5 | D14: 3 | E14: 1
A15: 32 | B15: 1 | C15: 71 | D15: 3 | E15: 2
A16: 33 | B16: 1 | C16: 171 | D16: 3 | E16: 3
A17: 34 | B17: 1 | C17: 271 | D17: 3 | E17: 4
A18: 41 | B18: 2 | C18: 7 | D18: 4 | E18: 1
A19: 42 | B19: 1 | C19: 91 | D19: 4 | E19: 2
A20: 43 | B20: 1 | C20: 191 | D20: 4 | E20: 3
A21: 44 | B21: 1 | C21: 291 | D21: 4 | E21: 4
A22: 51 | B22: 2 | C22: 9 | D22: 5 | E22: 1
A23: 52 | B23: 1 | C23: 111 | D23: 5 | E23: 2
A24: 53 | B24: 1 | C24: 211 | D24: 5 | E24: 3

Sheet 技能设计
A1: 英雄ID | B1: 英雄名 | C1: 职业 | D1: 品质 | E1: 技能1 | F1: 技能2 | G1: 技能3 | H1: 技能4 | I1: 技能5
A2: 105 | B2: 加雷斯·风暴 | C2: 1.战士 | D2: 传说ssr | E2: 旋风斩: 释放1道剑气，造成伤害 | F2: 加血: 提升血量{0} | G2: 防御: 提升防御{0} | H2: 专精: 增加{0}道[旋风斩]的剑气数量 | I2: 坚韧: 降低{0}的暴击伤害
A5: 107 | B5: 马修·星辰 | C5: 2.法师 | D5: 传说ssr | E5: 火焰烧烤: 对前方范围释放火焰，对范围内的敌人进行多次灼烧 | F5: 加攻: 提升攻击力{0} | G5: 加血: 提升血量{0} | H5: 专精: 延长{0}秒[火焰烧烤]的持续时间 | I5: 技能暴击: 提升{0}技能暴击率
A8: 113 | B8: 卢克·净魂 | C8: 3.牧师 | D8: 传说ssr | E8: 治疗: 对生命最低的英雄进行治疗 | F8: 加攻: 提升攻击力{0} | G8: 加血: 提升血量{0} | H8: 专精: 对生命值低于{0}%的英雄，提高{1}%的治疗量 | I8: 平等: 同时治疗{0}名英雄
A11: 116 | B11: 莱恩·影踪 | C11: 4.游侠 | D11: 传说ssr | E11: 连续射击: 向前方连续射出多支魔法箭 | F11: 加攻: 提升攻击力{0} | G11: 加血: 提升血量{0} | H11: 专精: 增加{0}支[连续射击]的魔法箭 | I11: 追击: 对生命值低于{0}的敌人，额外造成{1}伤害
C13: 4.游侠
